[Event "Titled Tuesday Blitz June 27 Early 2023"]
[White "Drozdowski, Kacper"]
[Black "Bruedigam, Martin"]
[WhiteFideId "1136720"]
[BlackFideId "24608033"]
[WhiteElo "2837"]
[BlackElo "2529"]
[Result "1-0"]
[Round "4"]
[TimeControl "180+2"]
[Date "2023.06.27"]
[WhiteClock "0:00:09"]
[BlackClock "0:00:00"]
[Board "109"]

1. e4 {[%clk 0:03:00]}  c6 {[%clk 0:03:00]} 2. d4 {[%clk 0:03:00]}  d5 {[%clk 0:03:00]} 3. Nc3 {[%clk 0:03:01]}  dxe4 {[%clk 0:03:00]} 4. Nxe4 {[%clk 0:03:02]}  Bf5 {[%clk 0:03:00]} 5. Ng3 {[%clk 0:03:03]}  Bg6 {[%clk 0:03:01]} 6. Nh3 {[%clk 0:03:03]}  e6 {[%clk 0:03:00]} 7. Nf4 {[%clk 0:03:04]}  Bd6 {[%clk 0:03:01]} 8. h4 {[%clk 0:03:04]}  Qc7 {[%clk 0:02:59]} 9. Nxg6 {[%clk 0:03:04]}  hxg6 {[%clk 0:03:00]} 10. Ne4 {[%clk 0:03:05]}  Bf4 {[%clk 0:02:52]} 11. Bxf4 {[%clk 0:03:05]}  Qxf4 {[%clk 0:02:53]} 12. Ng5 {[%clk 0:03:05]}  Nd7 {[%clk 0:02:47]} 13. g3 {[%clk 0:03:05]}  Qc7 {[%clk 0:02:46]} 14. Bg2 {[%clk 0:03:05]}  Ngf6 {[%clk 0:02:44]} 15. O-O {[%clk 0:03:05]}  O-O {[%clk 0:02:43]} 16. c3 {[%clk 0:03:04]}  a5 {[%clk 0:02:42]} 17. Re1 {[%clk 0:03:01]}  a4 {[%clk 0:02:42]} 18. Qc2 {[%clk 0:02:54]}  Qd6 {[%clk 0:02:40]} 19. Rad1 {[%clk 0:02:51]}  Ra5 {[%clk 0:02:39]} 20. c4 {[%clk 0:02:48]}  a3 {[%clk 0:02:38]} 21. b3 {[%clk 0:02:48]}  b6 {[%clk 0:02:23]} 22. Qc3 {[%clk 0:02:47]}  Ra7 {[%clk 0:02:17]} 23. Qf3 {[%clk 0:02:45]}  c5 {[%clk 0:02:03]} 24. dxc5 {[%clk 0:02:43]}  Qxc5 {[%clk 0:02:04]} 25. Bh3 {[%clk 0:02:41]}  Re8 {[%clk 0:01:49]} 26. Qc3 {[%clk 0:02:34]}  Nf8 {[%clk 0:01:42]} 27. b4 {[%clk 0:02:28]}  Qe7 {[%clk 0:01:40]} 28. Bg2 {[%clk 0:02:26]}  Rc8 {[%clk 0:01:37]} 29. b5 {[%clk 0:02:05]}  Qc5 {[%clk 0:01:31]} 30. Bc6 {[%clk 0:02:03]}  Ra4 {[%clk 0:01:30]} 31. Rc1 {[%clk 0:02:00]}  N8d7 {[%clk 0:01:28]} 32. Red1 {[%clk 0:01:38]}  Ne5 {[%clk 0:01:24]} 33. Bb7 {[%clk 0:01:32]}  Rb8 {[%clk 0:01:11]} 34. Bd5 {[%clk 0:01:23]}  Neg4 {[%clk 0:01:02]} 35. Qf3 {[%clk 0:00:59]}  exd5 {[%clk 0:00:59]} 36. Rxd5 {[%clk 0:00:59]}  Qe7 {[%clk 0:00:53]} 37. Rd4 {[%clk 0:00:55]}  Nh6 {[%clk 0:00:47]} 38. Rcd1 {[%clk 0:00:51]}  Nf5 {[%clk 0:00:43]} 39. Qf4 {[%clk 0:00:51]}  Rf8 {[%clk 0:00:41]} 40. R4d3 {[%clk 0:00:49]}  Raa8 {[%clk 0:00:26]} 41. Qd2 {[%clk 0:00:43]}  Rac8 {[%clk 0:00:25]} 42. Qc3 {[%clk 0:00:39]}  Ne4 {[%clk 0:00:21]} 43. Nxe4 {[%clk 0:00:36]}  Qxe4 {[%clk 0:00:22]} 44. Qxa3 {[%clk 0:00:35]}  Qxc4 {[%clk 0:00:21]} 45. Qb2 {[%clk 0:00:33]}  Rc5 {[%clk 0:00:20]} 46. Rd8 {[%clk 0:00:27]}  Qxb5 {[%clk 0:00:19]} 47. Rxf8+ {[%clk 0:00:26]}  Kxf8 {[%clk 0:00:20]} 48. Rd8+ {[%clk 0:00:20]}  Ke7 {[%clk 0:00:19]} 49. Qd2 {[%clk 0:00:21]}  Qb1+ {[%clk 0:00:17]} 50. Kh2 {[%clk 0:00:21]}  Qe4 {[%clk 0:00:05]} 51. Rd7+ {[%clk 0:00:17]}  Kf6 {[%clk 0:00:06]} 52. Qb2+ {[%clk 0:00:16]}  Qe5 {[%clk 0:00:05]} 53. Qxb6+ {[%clk 0:00:16]}  Nd6 {[%clk 0:00:04]} 54. Rxd6+ {[%clk 0:00:15]}  Kf5 {[%clk 0:00:04]} 55. Rd7 {[%clk 0:00:14]}  f6 {[%clk 0:00:04]} 56. Rxg7 {[%clk 0:00:12]}  Rc2 {[%clk 0:00:04]} 57. Rd7 {[%clk 0:00:10]}  Qe4 {[%clk 0:00:04]} 58. Rd1 {[%clk 0:00:09]}  Qf3 {[%clk 0:00:03]} 59. Rf1 {[%clk 0:00:09]}  Rxa2 {[%clk 0:00:00]} 60. Qb1+ {[%clk 0:00:09]} 1-0


[Site "https://www.chess.com"]

[Event "Titled Tuesday Blitz June 27 Early 2023"]
[White "Remizov, Yaroslav"]
[Black "Golubev, Mikhail"]
[WhiteFideId "34134015"]
[BlackFideId "14100983"]
[WhiteElo "2804"]
[BlackElo "2524"]
[Result "0-1"]
[Round "4"]
[TimeControl "180+2"]
[Date "2023.06.27"]
[WhiteClock "0:00:06"]
[BlackClock "0:00:08"]
[Board "110"]

1. d4 {[%clk 0:02:58]}  Nf6 {[%clk 0:02:59]} 2. c4 {[%clk 0:02:57]}  g6 {[%clk 0:02:58]} 3. Nc3 {[%clk 0:02:57]}  Bg7 {[%clk 0:02:59]} 4. e4 {[%clk 0:02:58]}  d6 {[%clk 0:02:59]} 5. Nf3 {[%clk 0:02:58]}  O-O {[%clk 0:02:58]} 6. Be2 {[%clk 0:02:58]}  e5 {[%clk 0:02:58]} 7. Be3 {[%clk 0:02:59]}  exd4 {[%clk 0:02:56]} 8. Nxd4 {[%clk 0:02:59]}  Re8 {[%clk 0:02:56]} 9. Qc2 {[%clk 0:02:59]}  c6 {[%clk 0:02:40]} 10. O-O {[%clk 0:02:54]}  Qe7 {[%clk 0:02:12]} 11. f3 {[%clk 0:02:38]}  d5 {[%clk 0:02:11]} 12. cxd5 {[%clk 0:02:38]}  cxd5 {[%clk 0:02:10]} 13. Bg5 {[%clk 0:02:34]}  Qe5 {[%clk 0:02:06]} 14. Bxf6 {[%clk 0:02:27]}  Bxf6 {[%clk 0:01:52]} 15. Nb3 {[%clk 0:02:18]}  dxe4 {[%clk 0:01:43]} 16. Qxe4 {[%clk 0:02:07]}  Qxe4 {[%clk 0:01:40]} 17. Nxe4 {[%clk 0:01:59]}  Bxb2 {[%clk 0:01:39]} 18. Rab1 {[%clk 0:02:00]}  Bg7 {[%clk 0:01:35]} 19. Bb5 {[%clk 0:01:43]}  Bd7 {[%clk 0:01:24]} 20. Bxd7 {[%clk 0:01:42]}  Nxd7 {[%clk 0:01:25]} 21. Nd6 {[%clk 0:01:41]}  Re2 {[%clk 0:01:22]} 22. Nxb7 {[%clk 0:01:31]}  Rxa2 {[%clk 0:01:20]} 23. Rfd1 {[%clk 0:01:27]}  Nb6 {[%clk 0:01:20]} 24. Nd8 {[%clk 0:01:22]}  Rc8 {[%clk 0:01:07]} 25. Rbc1 {[%clk 0:01:11]}  Rac2 {[%clk 0:00:49]} 26. Rxc2 {[%clk 0:01:02]}  Rxc2 {[%clk 0:00:49]} 27. Na5 {[%clk 0:01:01]}  Nc4 {[%clk 0:00:42]} 28. Nac6 {[%clk 0:00:54]}  Ne3 {[%clk 0:00:32]} 29. Re1 {[%clk 0:00:55]}  Nxg2 {[%clk 0:00:24]} 30. Re8+ {[%clk 0:00:26]}  Bf8 {[%clk 0:00:24]} 31. Nxa7 {[%clk 0:00:25]}  Nh4 {[%clk 0:00:23]} 32. Nac6 {[%clk 0:00:14]}  Nxf3+ {[%clk 0:00:22]} 33. Kf1 {[%clk 0:00:15]}  Nxh2+ {[%clk 0:00:20]} 34. Ke1 {[%clk 0:00:15]}  Nf3+ {[%clk 0:00:20]} 35. Kd1 {[%clk 0:00:15]}  Rd2+ {[%clk 0:00:19]} 36. Kc1 {[%clk 0:00:16]}  Rf2 {[%clk 0:00:16]} 37. Nb7 {[%clk 0:00:12]}  Kg7 {[%clk 0:00:16]} 38. Rd8 {[%clk 0:00:09]}  h5 {[%clk 0:00:14]} 39. Rd7 {[%clk 0:00:09]}  h4 {[%clk 0:00:14]} 40. Nbd8 {[%clk 0:00:09]}  Ng5 {[%clk 0:00:13]} 41. Nd4 {[%clk 0:00:05]}  h3 {[%clk 0:00:11]} 42. N4e6+ {[%clk 0:00:05]}  Nxe6 {[%clk 0:00:10]} 43. Nxe6+ {[%clk 0:00:06]}  Kg8 {[%clk 0:00:10]} 44. Ng5 {[%clk 0:00:06]}  h2 {[%clk 0:00:10]} 45. Rd1 {[%clk 0:00:07]}  Rg2 {[%clk 0:00:09]} 46. Nf3 {[%clk 0:00:08]}  Bc5 {[%clk 0:00:08]} 47. Rh1 {[%clk 0:00:08]}  Rg1+ {[%clk 0:00:08]} 48. Nxg1 {[%clk 0:00:06]}  hxg1=Q+ {[%clk 0:00:08]} 0-1


[Site "https://www.chess.com"]

[Event "Titled Tuesday Blitz June 27 Early 2023"]
[White "Shuvalov, Evgenij"]
[Black "Cherniaiev, Tykhon"]
[WhiteFideId "4187237"]
[BlackFideId "14182360"]
[WhiteElo "2496"]
[BlackElo "2702"]
[Result "0-1"]
[Round "4"]
[TimeControl "180+2"]
[Date "2023.06.27"]
[WhiteClock "0:01:23"]
[BlackClock "0:00:49"]
[Board "112"]

1. d4 {[%clk 0:03:00]}  Nf6 {[%clk 0:03:00]} 2. c4 {[%clk 0:03:00]}  e6 {[%clk 0:03:00]} 3. Nc3 {[%clk 0:03:00]}  d5 {[%clk 0:03:01]} 4. cxd5 {[%clk 0:02:59]}  exd5 {[%clk 0:03:01]} 5. Bg5 {[%clk 0:02:59]}  c6 {[%clk 0:02:54]} 6. e3 {[%clk 0:02:59]}  Be7 {[%clk 0:02:55]} 7. Bd3 {[%clk 0:02:59]}  O-O {[%clk 0:02:55]} 8. Nge2 {[%clk 0:02:59]}  h6 {[%clk 0:02:51]} 9. Bh4 {[%clk 0:02:59]}  Ne4 {[%clk 0:02:52]} 10. Bxe7 {[%clk 0:02:56]}  Qxe7 {[%clk 0:02:52]} 11. Bxe4 {[%clk 0:02:56]}  dxe4 {[%clk 0:02:53]} 12. h3 {[%clk 0:02:54]}  Bf5 {[%clk 0:02:49]} 13. d5 {[%clk 0:02:48]}  Rd8 {[%clk 0:02:24]} 14. Qb3 {[%clk 0:02:46]}  Na6 {[%clk 0:02:21]} 15. O-O {[%clk 0:02:40]}  Nc5 {[%clk 0:02:13]} 16. Qa3 {[%clk 0:02:39]}  b6 {[%clk 0:01:20]} 17. Nd4 {[%clk 0:02:32]}  Qg5 {[%clk 0:01:00]} 18. Nxf5 {[%clk 0:02:25]}  Qxf5 {[%clk 0:01:01]} 19. dxc6 {[%clk 0:02:25]}  Rd6 {[%clk 0:00:56]} 20. Nb5 {[%clk 0:02:16]}  Rg6 {[%clk 0:00:52]} 21. Kh1 {[%clk 0:02:06]}  Qg5 {[%clk 0:00:50]} 22. Rg1 {[%clk 0:02:05]}  Nd3 {[%clk 0:00:49]} 23. Nd4 {[%clk 0:01:23]}  Nxf2+ {[%clk 0:00:48]} 24. Kh2 {[%clk 0:01:23]}  Qg3# {[%clk 0:00:49]} 0-1


[Site "https://www.chess.com"]

[Event "Titled Tuesday Blitz June 27 Early 2023"]
[White "Khoroshev, Nikita"]
[Black "Srebrnic, Marko"]
[WhiteFideId "14200287"]
[BlackFideId "14603616"]
[WhiteElo "2670"]
[BlackElo "2491"]
[Result "1-0"]
[Round "4"]
[TimeControl "180+2"]
[Date "2023.06.27"]
[WhiteClock "0:01:33"]
[BlackClock "0:00:00"]
[Board "113"]

1. Nf3 {[%clk 0:03:00]}  Nf6 {[%clk 0:02:59]} 2. g3 {[%clk 0:03:00]}  Nc6 {[%clk 0:02:57]} 3. d4 {[%clk 0:02:53]}  e6 {[%clk 0:02:49]} 4. Bg2 {[%clk 0:02:52]}  Be7 {[%clk 0:02:42]} 5. O-O {[%clk 0:02:47]}  O-O {[%clk 0:02:42]} 6. c4 {[%clk 0:02:47]}  d6 {[%clk 0:02:17]} 7. Nc3 {[%clk 0:02:46]}  e5 {[%clk 0:02:15]} 8. e4 {[%clk 0:02:41]}  Bg4 {[%clk 0:02:10]} 9. d5 {[%clk 0:02:40]}  Nd4 {[%clk 0:02:09]} 10. Be3 {[%clk 0:02:40]}  Nxf3+ {[%clk 0:02:05]} 11. Bxf3 {[%clk 0:02:39]}  Bxf3 {[%clk 0:02:04]} 12. Qxf3 {[%clk 0:02:40]}  Nd7 {[%clk 0:01:54]} 13. Qg2 {[%clk 0:02:28]}  Bg5 {[%clk 0:01:37]} 14. f4 {[%clk 0:02:26]}  Bh6 {[%clk 0:01:37]} 15. Rae1 {[%clk 0:02:24]}  f5 {[%clk 0:01:11]} 16. exf5 {[%clk 0:02:20]}  c6 {[%clk 0:00:22]} 17. dxc6 {[%clk 0:02:14]}  bxc6 {[%clk 0:00:22]} 18. Qxc6 {[%clk 0:02:13]}  exf4 {[%clk 0:00:19]} 19. Bxf4 {[%clk 0:02:09]}  Bxf4 {[%clk 0:00:15]} 20. Rxf4 {[%clk 0:02:10]}  Nf6 {[%clk 0:00:06]} 21. Nd5 {[%clk 0:02:01]}  Nh5 {[%clk 0:00:03]} 22. Rf2 {[%clk 0:01:57]}  Kh8 {[%clk 0:00:02]} 23. b3 {[%clk 0:01:51]}  Rc8 {[%clk 0:00:01]} 24. Qb7 {[%clk 0:01:51]}  Rb8 {[%clk 0:00:01]} 25. Qe7 {[%clk 0:01:48]}  Ra8 {[%clk 0:00:02]} 26. Qxd8 {[%clk 0:01:47]}  Raxd8 {[%clk 0:00:03]} 27. Re7 {[%clk 0:01:45]}  a5 {[%clk 0:00:03]} 28. g4 {[%clk 0:01:43]}  Nf6 {[%clk 0:00:02]} 29. Nxf6 {[%clk 0:01:43]}  gxf6 {[%clk 0:00:03]} 30. Kg2 {[%clk 0:01:43]}  d5 {[%clk 0:00:02]} 31. c5 {[%clk 0:01:41]}  d4 {[%clk 0:00:02]} 32. Rd2 {[%clk 0:01:40]}  Rd5 {[%clk 0:00:03]} 33. c6 {[%clk 0:01:40]}  Rc8 {[%clk 0:00:03]} 34. c7 {[%clk 0:01:41]}  d3 {[%clk 0:00:03]} 35. Kf3 {[%clk 0:01:41]}  Rc5 {[%clk 0:00:03]} 36. Ke3 {[%clk 0:01:40]}  R5xc7 {[%clk 0:00:03]} 37. Rxc7 {[%clk 0:01:40]}  Rxc7 {[%clk 0:00:04]} 38. Kxd3 {[%clk 0:01:41]}  Rd7+ {[%clk 0:00:05]} 39. Ke3 {[%clk 0:01:41]}  Rc7 {[%clk 0:00:05]} 40. Kf4 {[%clk 0:01:41]}  Kg7 {[%clk 0:00:05]} 41. h4 {[%clk 0:01:41]}  a4 {[%clk 0:00:06]} 42. bxa4 {[%clk 0:01:38]}  Rc4+ {[%clk 0:00:06]} 43. Kg3 {[%clk 0:01:38]}  Rxa4 {[%clk 0:00:07]} 44. g5 {[%clk 0:01:36]}  fxg5 {[%clk 0:00:07]} 45. hxg5 {[%clk 0:01:36]}  Kf7 {[%clk 0:00:07]} 46. Rd7+ {[%clk 0:01:36]}  Kg8 {[%clk 0:00:07]} 47. Rd2 {[%clk 0:01:36]}  Kf7 {[%clk 0:00:07]} 48. Kf3 {[%clk 0:01:36]}  Kf8 {[%clk 0:00:07]} 49. Rh2 {[%clk 0:01:35]}  Kg8 {[%clk 0:00:07]} 50. Rb2 {[%clk 0:01:34]}  Kf7 {[%clk 0:00:07]} 51. Rb7+ {[%clk 0:01:34]}  Kg8 {[%clk 0:00:07]} 52. Kg3 {[%clk 0:01:34]}  Kh8 {[%clk 0:00:05]} 53. f6 {[%clk 0:01:33]}  Kg8 {[%clk 0:00:06]} 54. Rg7+ {[%clk 0:01:33]}  Kh8 {[%clk 0:00:06]} 55. Re7 {[%clk 0:01:33]}  Kg8 {[%clk 0:00:06]} 56. Kf3 {[%clk 0:01:33]}  Kf8 {[%clk 0:00:06]} 57. Rxh7 {[%clk 0:01:32]}  Rxa2 {[%clk 0:00:07]} 58. g6 {[%clk 0:01:32]}  Kg8 {[%clk 0:00:06]} 59. Rc7 {[%clk 0:01:32]}  Ra8 {[%clk 0:00:05]} 60. Kg4 {[%clk 0:01:32]}  Rb8 {[%clk 0:00:03]} 61. Kg5 {[%clk 0:01:33]}  Ra8 {[%clk 0:00:04]} 62. Kh6 {[%clk 0:01:33]}  Rb8 {[%clk 0:00:04]} 63. Rg7+ {[%clk 0:01:32]}  Kf8 {[%clk 0:00:00]} 64. Rh7 {[%clk 0:01:33]} 1-0


[Site "https://www.chess.com"]

[Event "Titled Tuesday Blitz June 27 Early 2023"]
[White "djokovic74"]
[Black "Devaev, Alexander"]
[BlackFideId "4169395"]
[WhiteElo "2666"]
[BlackElo "2494"]
[Result "1-0"]
[Round "4"]
[TimeControl "180+2"]
[Date "2023.06.27"]
[WhiteClock "0:00:03"]
[BlackClock "0:00:08"]
[Board "114"]

1. e4 {[%clk 0:03:00]}  c6 {[%clk 0:03:00]} 2. Nf3 {[%clk 0:03:01]}  d5 {[%clk 0:03:00]} 3. Nc3 {[%clk 0:03:02]}  Nf6 {[%clk 0:03:00]} 4. e5 {[%clk 0:03:01]}  Ne4 {[%clk 0:03:01]} 5. Nxe4 {[%clk 0:03:01]}  dxe4 {[%clk 0:03:01]} 6. Ng5 {[%clk 0:03:02]}  Qd5 {[%clk 0:03:02]} 7. Qe2 {[%clk 0:03:03]}  Qxe5 {[%clk 0:02:58]} 8. Nxe4 {[%clk 0:03:03]}  Bf5 {[%clk 0:02:43]} 9. d3 {[%clk 0:03:03]}  Nd7 {[%clk 0:02:34]} 10. g3 {[%clk 0:03:03]}  Bxe4 {[%clk 0:02:27]} 11. Qxe4 {[%clk 0:02:56]}  Qxe4+ {[%clk 0:02:21]} 12. dxe4 {[%clk 0:02:57]}  e5 {[%clk 0:02:22]} 13. Bd2 {[%clk 0:02:50]}  Bc5 {[%clk 0:02:19]} 14. Bh3 {[%clk 0:02:48]}  Nf6 {[%clk 0:02:02]} 15. f3 {[%clk 0:02:47]}  Ke7 {[%clk 0:02:00]} 16. Ke2 {[%clk 0:02:46]}  Rhd8 {[%clk 0:01:58]} 17. Bc3 {[%clk 0:02:40]}  Bd4 {[%clk 0:01:54]} 18. Bb4+ {[%clk 0:02:41]}  Ke8 {[%clk 0:01:55]} 19. c3 {[%clk 0:02:39]}  Bb6 {[%clk 0:01:45]} 20. Rad1 {[%clk 0:02:29]}  Bc7 {[%clk 0:01:34]} 21. Bc5 {[%clk 0:02:25]}  Nd7 {[%clk 0:01:21]} 22. Be3 {[%clk 0:02:15]}  Bb6 {[%clk 0:01:20]} 23. Bc1 {[%clk 0:02:11]}  a5 {[%clk 0:01:12]} 24. Bf1 {[%clk 0:01:56]}  Bc5 {[%clk 0:01:07]} 25. a4 {[%clk 0:01:53]}  Nb6 {[%clk 0:01:07]} 26. b3 {[%clk 0:01:53]}  Rxd1 {[%clk 0:01:06]} 27. Kxd1 {[%clk 0:01:53]}  Rd8+ {[%clk 0:01:07]} 28. Kc2 {[%clk 0:01:53]}  Ke7 {[%clk 0:01:01]} 29. Bd2 {[%clk 0:01:50]}  f6 {[%clk 0:00:46]} 30. Be2 {[%clk 0:01:48]}  Nd7 {[%clk 0:00:43]} 31. Rb1 {[%clk 0:01:40]}  Ra8 {[%clk 0:00:33]} 32. Rf1 {[%clk 0:01:27]}  Bd6 {[%clk 0:00:30]} 33. Bc4 {[%clk 0:01:17]}  Nb6 {[%clk 0:00:30]} 34. Be2 {[%clk 0:01:14]}  Nd7 {[%clk 0:00:30]} 35. h4 {[%clk 0:01:11]}  Nc5 {[%clk 0:00:27]} 36. Rh1 {[%clk 0:01:01]}  Rb8 {[%clk 0:00:24]} 37. Ra1 {[%clk 0:01:00]}  Ra8 {[%clk 0:00:24]} 38. g4 {[%clk 0:00:59]}  h6 {[%clk 0:00:23]} 39. g5 {[%clk 0:00:56]}  hxg5 {[%clk 0:00:23]} 40. hxg5 {[%clk 0:00:55]}  Rh8 {[%clk 0:00:23]} 41. gxf6+ {[%clk 0:00:48]}  Kxf6 {[%clk 0:00:19]} 42. Rg1 {[%clk 0:00:44]}  Ne6 {[%clk 0:00:19]} 43. Bc4 {[%clk 0:00:29]}  Nf4 {[%clk 0:00:19]} 44. Rd1 {[%clk 0:00:19]}  Rh2 {[%clk 0:00:19]} 45. Kc1 {[%clk 0:00:19]}  Bc5 {[%clk 0:00:20]} 46. b4 {[%clk 0:00:15]}  axb4 {[%clk 0:00:19]} 47. cxb4 {[%clk 0:00:15]}  Bb6 {[%clk 0:00:11]} 48. a5 {[%clk 0:00:14]}  Bc7 {[%clk 0:00:10]} 49. Bxf4 {[%clk 0:00:14]}  exf4 {[%clk 0:00:11]} 50. Rd7 {[%clk 0:00:15]}  Be5 {[%clk 0:00:10]} 51. Rf7+ {[%clk 0:00:13]}  Kg5 {[%clk 0:00:09]} 52. Rf5+ {[%clk 0:00:13]}  Kh4 {[%clk 0:00:09]} 53. Rxe5 {[%clk 0:00:14]}  Kg3 {[%clk 0:00:10]} 54. Rg5+ {[%clk 0:00:11]}  Kxf3 {[%clk 0:00:10]} 55. Rxg7 {[%clk 0:00:12]}  Ke3 {[%clk 0:00:08]} 56. Rxb7 {[%clk 0:00:11]}  f3 {[%clk 0:00:09]} 57. a6 {[%clk 0:00:09]}  Rh1+ {[%clk 0:00:09]} 58. Kb2 {[%clk 0:00:09]}  Rh2+ {[%clk 0:00:08]} 59. Kb3 {[%clk 0:00:09]}  Rh1 {[%clk 0:00:08]} 60. e5 {[%clk 0:00:04]}  f2 {[%clk 0:00:08]} 61. Rf7 {[%clk 0:00:03]}  Rc1 {[%clk 0:00:09]} 62. e6 {[%clk 0:00:03]}  Rb1+ {[%clk 0:00:07]} 63. Kc2 {[%clk 0:00:03]}  Ra1 {[%clk 0:00:08]} 64. e7 {[%clk 0:00:03]}  f1=Q {[%clk 0:00:08]} 65. e8=Q+ {[%clk 0:00:02]}  Kd4 {[%clk 0:00:07]} 66. Rxf1 {[%clk 0:00:03]}  Ra2+ {[%clk 0:00:08]} 67. Bxa2 {[%clk 0:00:02]}  c5 {[%clk 0:00:08]} 68. Rd1# {[%clk 0:00:03]} 1-0


[Site "https://www.chess.com"]

[Event "Titled Tuesday Blitz June 27 Early 2023"]
[White "Jovic, Stanoje"]
[Black "Bauman_Guy"]
[WhiteFideId "905020"]
[WhiteElo "2473"]
[BlackElo "2641"]
[Result "1/2-1/2"]
[Round "4"]
[TimeControl "180+2"]
[Date "2023.06.27"]
[WhiteClock "0:00:32"]
[BlackClock "0:02:08"]
[Board "116"]

1. c4 {[%clk 0:03:00]}  Nf6 {[%clk 0:03:00]} 2. g3 {[%clk 0:03:01]}  g6 {[%clk 0:03:00]} 3. Bg2 {[%clk 0:03:01]}  Bg7 {[%clk 0:03:01]} 4. Nc3 {[%clk 0:03:01]}  O-O {[%clk 0:03:01]} 5. Nf3 {[%clk 0:03:01]}  d6 {[%clk 0:03:02]} 6. O-O {[%clk 0:03:01]}  Nbd7 {[%clk 0:03:02]} 7. Rb1 {[%clk 0:03:00]}  a5 {[%clk 0:03:02]} 8. a3 {[%clk 0:03:00]}  e5 {[%clk 0:03:02]} 9. b4 {[%clk 0:02:58]}  axb4 {[%clk 0:03:03]} 10. axb4 {[%clk 0:02:59]}  Re8 {[%clk 0:03:04]} 11. d3 {[%clk 0:02:59]}  e4 {[%clk 0:03:03]} 12. dxe4 {[%clk 0:02:49]}  Nxe4 {[%clk 0:03:03]} 13. Nxe4 {[%clk 0:02:49]}  Rxe4 {[%clk 0:03:03]} 14. Ng5 {[%clk 0:02:49]}  Re7 {[%clk 0:03:03]} 15. c5 {[%clk 0:02:44]}  dxc5 {[%clk 0:03:03]} 16. bxc5 {[%clk 0:02:44]}  c6 {[%clk 0:03:03]} 17. Bf4 {[%clk 0:02:33]}  Be5 {[%clk 0:02:59]} 18. Be3 {[%clk 0:02:14]}  Qf8 {[%clk 0:02:48]} 19. Ne4 {[%clk 0:02:09]}  Nf6 {[%clk 0:02:46]} 20. Nd6 {[%clk 0:02:06]}  Ng4 {[%clk 0:02:40]} 21. Bg5 {[%clk 0:02:01]}  Bf6 {[%clk 0:02:40]} 22. Bxf6 {[%clk 0:01:59]}  Nxf6 {[%clk 0:02:40]} 23. Qd4 {[%clk 0:01:56]}  Qg7 {[%clk 0:02:40]} 24. e4 {[%clk 0:01:56]}  Nd7 {[%clk 0:02:38]} 25. Qxg7+ {[%clk 0:01:47]}  Kxg7 {[%clk 0:02:38]} 26. Nxb7 {[%clk 0:01:43]}  Bxb7 {[%clk 0:02:39]} 27. Rxb7 {[%clk 0:01:43]}  Kf8 {[%clk 0:02:39]} 28. Rc1 {[%clk 0:01:36]}  Ne5 {[%clk 0:02:37]} 29. Rxe7 {[%clk 0:01:32]}  Kxe7 {[%clk 0:02:37]} 30. f4 {[%clk 0:01:28]}  Nd3 {[%clk 0:02:35]} 31. Rc3 {[%clk 0:01:25]}  Ra1+ {[%clk 0:02:35]} 32. Bf1 {[%clk 0:01:19]}  Nb4 {[%clk 0:02:32]} 33. Kf2 {[%clk 0:01:13]}  Ra2+ {[%clk 0:02:27]} 34. Be2 {[%clk 0:01:11]}  Nc2 {[%clk 0:02:22]} 35. Bc4 {[%clk 0:01:03]}  Rb2 {[%clk 0:02:21]} 36. Rb3 {[%clk 0:00:49]}  Rxb3 {[%clk 0:02:21]} 37. Bxb3 {[%clk 0:00:49]}  Nd4 {[%clk 0:02:20]} 38. Ba4 {[%clk 0:00:46]}  Ne6 {[%clk 0:02:18]} 39. Bxc6 {[%clk 0:00:44]}  Nxc5 {[%clk 0:02:19]} 40. Ke3 {[%clk 0:00:44]}  f6 {[%clk 0:02:19]} 41. Bd5 {[%clk 0:00:40]}  g5 {[%clk 0:02:15]} 42. h4 {[%clk 0:00:36]}  h6 {[%clk 0:02:13]} 43. hxg5 {[%clk 0:00:35]}  hxg5 {[%clk 0:02:12]} 44. e5 {[%clk 0:00:34]}  gxf4+ {[%clk 0:02:08]} 45. gxf4 {[%clk 0:00:34]}  fxe5 {[%clk 0:02:08]} 46. fxe5 {[%clk 0:00:33]}  Nd7 {[%clk 0:02:08]} 47. e6 {[%clk 0:00:33]}  Nf8 {[%clk 0:02:08]} 48. Ke4 {[%clk 0:00:32]}  Nxe6 {[%clk 0:02:08]} 1/2-1/2


[Site "https://www.chess.com"]

[Event "Titled Tuesday Blitz June 27 Early 2023"]
[White "Asavasaetakul, Chawit"]
[Black "Petrova, Irina"]
[WhiteFideId "6204856"]
[BlackFideId "14124122"]
[WhiteElo "2611"]
[BlackElo "2408"]
[Result "1-0"]
[Round "4"]
[TimeControl "180+2"]
[Date "2023.06.27"]
[WhiteClock "0:01:28"]
[BlackClock "0:00:31"]
[Board "118"]

1. e4 {[%clk 0:03:00]}  e5 {[%clk 0:02:59]} 2. Nf3 {[%clk 0:03:00]}  Nc6 {[%clk 0:02:59]} 3. Nc3 {[%clk 0:03:00]}  Nf6 {[%clk 0:02:59]} 4. d4 {[%clk 0:03:00]}  exd4 {[%clk 0:02:57]} 5. Nxd4 {[%clk 0:03:01]}  Bb4 {[%clk 0:02:57]} 6. Nxc6 {[%clk 0:03:02]}  bxc6 {[%clk 0:02:57]} 7. Bd3 {[%clk 0:03:02]}  O-O {[%clk 0:02:57]} 8. O-O {[%clk 0:03:03]}  d5 {[%clk 0:02:57]} 9. exd5 {[%clk 0:03:03]}  cxd5 {[%clk 0:02:58]} 10. Bg5 {[%clk 0:03:04]}  c6 {[%clk 0:02:54]} 11. Na4 {[%clk 0:03:04]}  Be7 {[%clk 0:02:41]} 12. c4 {[%clk 0:03:04]}  Be6 {[%clk 0:02:34]} 13. Rc1 {[%clk 0:03:03]}  d4 {[%clk 0:02:28]} 14. Qf3 {[%clk 0:02:50]}  c5 {[%clk 0:02:13]} 15. Bxf6 {[%clk 0:02:49]}  Bxf6 {[%clk 0:02:13]} 16. Nxc5 {[%clk 0:02:48]}  Qb6 {[%clk 0:02:03]} 17. Ne4 {[%clk 0:02:27]}  Be7 {[%clk 0:01:59]} 18. b3 {[%clk 0:02:26]}  f5 {[%clk 0:01:49]} 19. Ng3 {[%clk 0:02:23]}  Rae8 {[%clk 0:01:49]} 20. Nxf5 {[%clk 0:01:57]}  Bxf5 {[%clk 0:01:27]} 21. Bxf5 {[%clk 0:01:57]}  Kh8 {[%clk 0:01:21]} 22. Qh3 {[%clk 0:01:52]}  g6 {[%clk 0:01:20]} 23. c5 {[%clk 0:01:33]}  Qf6 {[%clk 0:00:57]} 24. Bd7 {[%clk 0:01:32]}  Ra8 {[%clk 0:00:44]} 25. c6 {[%clk 0:01:32]}  Qd6 {[%clk 0:00:31]} 26. c7 {[%clk 0:01:28]} 1-0


[Site "https://www.chess.com"]